bitfinex/quotes_BTCUSD_20251120
["timestamp","ask_amount","ask_price","bid_price","bid_amount"]
[1763660346080,0.14402079,87054.0,87053.0,0.10728254]
[1763660346298,0.06827886,87054.0,87053.0,0.10732052]
[1763660346498,0.06827886,87054.0,87053.0,0.02474783]
[1763660346499,0.07491397,87054.0,87053.0,0.02474783]
[1763660346671,0.12491397,87054.0,87053.0,0.02474783]
[1763660346895,0.45836069,87054.0,87053.0,0.02474783]
[1763660347095,0.45836,87054.0,87053.0,0.02474783]
[1763660347379,0.07127244,87054.0,87053.0,0.02474783]
[1763660347529,0.00037731,87054.0,87053.0,0.02474783]
[1763660347942,0.04643,87080.0,87053.0,0.02474783]
[1763660348152,0.04643,87080.0,87061.0,0.10324483]
[1763660348356,0.0002,87080.0,87068.0,0.10324483]
[1763660348666,0.0002,87080.0,87062.0,0.02474783]
[1763660348667,0.0002,87080.0,87075.0,0.10324483]
[1763660348832,0.0502,87080.0,87076.0,0.02474783]
[1763660349031,0.0502,87080.0,87077.0,0.02474783]
[1763660349032,0.05,87078.0,87077.0,0.02474783]
[1763660349479,0.15160249,87078.0,87077.0,0.02474783]
[1763660349639,0.46241643,87078.0,87077.0,0.02474783]
[1763660349890,0.40053393,87078.0,87077.0,0.02474783]
[1763660350419,0.40053393,87078.0,87077.0,0.00168783]
[1763660350618,3.08139725,87078.0,87077.0,0.00168783]
[1763660350823,0.22969232,87073.0,87072.0,0.01415798]
[1763660351034,0.01,87062.0,87061.0,0.00012556]
[1763660351315,0.08139725,87062.0,87061.0,0.00012556]
[1763660351522,0.03139725,87062.0,87061.0,0.00012556]
[1763660351727,0.08139725,87062.0,87061.0,0.00012556]
[1763660351961,0.03139725,87062.0,87061.0,0.00012556]
[1763660352176,0.04139725,87062.0,87061.0,0.00012556]
[1763660352598,0.09349974,87062.0,87061.0,0.00012556]
[1763660352808,0.05,87037.0,87035.0,0.08259034]
[1763660353011,0.0209316,87036.0,87027.0,0.08259034]
[1763660353217,0.01,87028.0,87027.0,0.00012566]
[1763660353416,0.01,87030.0,87027.0,0.00012566]
[1763660353624,0.323,87059.0,87028.0,0.08259034]
[1763660353864,0.05,87056.0,87042.0,0.08259034]
[1763660354067,0.0209978,87055.0,87044.0,0.08259034]
[1763660354280,0.0209978,87054.0,87044.0,0.08259034]
[1763660354506,0.0209978,87053.0,87044.0,0.08259034]
[1763660354774,0.05,87061.0,87045.0,0.01378597]
[1763660354991,0.05,87053.0,87045.0,0.08259034]
[1763660355225,0.05,87052.0,87044.0,0.08259034]
[1763660355440,0.05,87042.0,87038.0,0.08259034]
[1763660355647,0.05,87042.0,87031.0,0.323]
[1763660355648,0.05,87042.0,87034.0,0.08259034]
[1763660355900,0.00025172,87062.0,87035.0,0.08259034]
[1763660356117,0.00025172,87062.0,87032.0,0.08259034]
[1763660356118,0.11476708,87054.0,87032.0,0.08259034]
[1763660356338,0.11476708,87054.0,87005.0,0.16638875]
[1763660356339,0.05,87030.0,87029.0,0.08259034]
[1763660356538,0.07493,87028.0,87019.0,0.08259034]
[1763660356745,0.07493,87028.0,87002.0,0.08259034]
[1763660356746,0.01695,87026.0,87002.0,0.08259034]
[1763660356950,0.03147451,87025.0,87019.0,0.03100136]
[1763660357099,0.03147451,87025.0,86983.0,0.04615]
[1763660357100,0.03147451,87024.0,87017.0,0.03100136]
[1763660357299,0.03147451,87023.0,86990.0,0.70731881]
[1763660357513,0.02,87016.0,87015.0,0.0309793]
[1763660357756,0.02,87009.0,86993.0,0.08259034]
[1763660358001,0.01707545,87026.0,86991.0,0.01379453]
[1763660358002,0.05,87014.0,86994.0,0.01379405]
[1763660358144,0.05,87014.0,86991.0,0.08259034]
[1763660358356,0.05,87014.0,86995.0,0.01379389]
[1763660358558,0.05,87014.0,87000.0,0.70731881]
[1763660358776,0.70731881,87010.0,86990.0,0.08259034]
[1763660359004,0.11476708,87025.0,86990.0,0.70731881]
[1763660359005,0.323,87019.0,86990.0,0.70731881]
[1763660359183,0.05,87024.0,87014.0,0.03095063]
[1763660359537,0.323,87022.0,87013.0,0.03095148]
[1763660359793,0.323,87022.0,87015.0,0.03095094]
[1763660360021,0.323,87022.0,87015.0,0.03095145]
[1763660360273,0.02094447,87021.0,87007.0,0.03095145]
[1763660360490,0.323,87022.0,86985.0,0.323]
[1763660360491,0.02,87008.0,86985.0,0.323]
[1763660360696,0.05,87008.0,87007.0,0.0309388]
[1763660360910,0.323,87019.0,87003.0,0.0309388]
[1763660361123,0.70731881,87020.0,86999.0,0.0309388]
[1763660361124,0.37510249,87012.0,86999.0,0.0309388]
[1763660361339,0.02092568,87011.0,86995.0,0.0309388]
[1763660361573,0.323,87012.0,86994.0,0.0309388]
[1763660361574,0.05,86995.0,86994.0,0.0309388]
[1763660362000,0.05,86995.0,86974.0,0.08259034]
[1763660362001,0.05,86994.0,86993.0,0.0309388]
[1763660362209,0.01,86992.0,86991.0,0.03090108]
[1763660362666,0.01,86992.0,86974.0,0.08259034]
[1763660362885,0.01,86992.0,86975.0,0.02471712]
[1763660362886,0.00012538,86992.0,86975.0,0.02471712]
[1763660363103,0.01012538,86992.0,86990.0,0.03089723]
[1763660363330,0.01012538,86992.0,86960.0,0.70731881]
[1763660363331,0.11476708,86991.0,86984.0,0.03089723]
[1763660363546,0.11476708,86991.0,86961.0,0.42624483]
[1763660363547,0.05,86986.0,86985.0,0.024706]
[1763660363963,0.0143352,86994.0,86985.0,0.024706]
[1763660364107,0.0143352,86994.0,86986.0,0.02469234]
[1763660364314,0.01,86988.0,86987.0,0.02469234]
[1763660364550,0.01,86988.0,86985.0,0.00041913]
[1763660364747,0.01,86988.0,86986.0,0.02468946]
[1763660364959,0.01,86988.0,86987.0,0.02468946]
[1763660365290,0.01,86986.0,86985.0,0.00041913]
[1763660366506,0.05,86986.0,86985.0,0.00041913]
[1763660370212,0.051,86986.0,86985.0,0.00041913]
[1763660372343,0.001,86986.0,86985.0,0.09673913]
[1763660372629,0.001,86986.0,86985.0,0.00967391]
[1763660372879,0.01434,87004.0,86976.0,0.70731881]
[1763660372880,0.01,87003.0,86976.0,0.70731881]
[1763660373124,0.01041879,87003.0,86979.0,0.09632]
[1763660373329,0.01041879,87003.0,86990.0,0.70731881]
[1763660373556,0.00041879,87003.0,87002.0,0.0492]
[1763660374221,0.00041879,87003.0,87002.0,0.0738012]
[1763660374603,0.02,87000.0,86989.0,0.03089723]
[1763660374780,0.02,87000.0,86991.0,0.34760311]
[1763660375089,0.00041879,87003.0,86992.0,0.02460311]
[1763660375301,0.00041879,87003.0,86993.0,0.02460311]
[1763660375521,0.00041879,87003.0,86994.0,0.02460311]
[1763660375714,0.00041879,87003.0,86995.0,0.02460311]
[1763660375963,0.00041879,87003.0,86991.0,0.323]
[1763660375964,0.00041879,87003.0,86996.0,0.02460311]
[1763660376179,0.00041879,87003.0,87002.0,0.001]
[1763660376397,0.00041879,87003.0,86991.0,0.323]
[1763660376638,0.00041879,87003.0,86992.0,0.02461527]
[1763660376865,0.00041879,87003.0,86993.0,0.02461527]
[1763660377077,0.00041879,87003.0,86994.0,0.02461527]
[1763660377290,0.00041879,87003.0,87002.0,0.0492]
[1763660377512,0.00041879,87003.0,87002.0,0.07381527]
[1763660377760,0.00041879,87003.0,87002.0,0.51586086]
[1763660377993,0.01803697,87021.0,87011.0,0.70731881]
[1763660378216,0.01816253,87021.0,87012.0,0.02461527]
[1763660378433,0.00012556,87021.0,87013.0,0.02461527]
[1763660378650,0.05213137,87021.0,87014.0,0.02461527]
[1763660378864,0.05,87011.0,87010.0,0.70731881]
[1763660379085,0.02547556,87021.0,87010.0,0.07073188]
[1763660379086,0.00012556,87021.0,87010.0,0.07073188]
[1763660379298,0.00012556,87021.0,87011.0,0.76272993]
[1763660379511,0.00012556,87021.0,87012.0,0.05541112]
[1763660379726,0.00012556,87021.0,87013.0,0.05541112]
[1763660379943,0.00012556,87021.0,87014.0,0.02464453]
[1763660380159,0.00012556,87021.0,87015.0,0.02464453]
[1763660380374,0.00012556,87021.0,87011.0,0.70731881]
[1763660380375,0.00012556,87021.0,87016.0,0.02464453]
[1763660380586,0.00012556,87021.0,87011.0,0.70731881]
[1763660380587,0.00012556,87021.0,87017.0,0.05541112]
[1763660380832,0.00012556,87021.0,87018.0,0.05541112]
[1763660381030,0.00012556,87021.0,87019.0,0.02464453]
[1763660381243,0.00012556,87021.0,87020.0,0.02464453]
[1763660381468,0.00012556,87021.0,87020.0,0.55759975]
[1763660381689,0.00025172,87062.0,87021.0,0.37510249]
[1763660381917,0.01,87059.0,87052.0,0.70731881]
[1763660382130,0.04999369,87062.0,87052.0,0.64388334]
[1763660382405,0.00037728,87062.0,87052.0,0.64388334]
[1763660382646,0.00037728,87062.0,87052.0,0.64158116]
[1763660382863,0.00238309,87062.0,87052.0,0.64158116]
[1763660383105,0.00037728,87062.0,87052.0,0.64158116]
[1763660384098,0.04961641,87060.0,87052.0,0.64158116]
[1763660384302,0.04961641,87060.0,87051.0,0.0492]
[1763660384515,0.00037728,87062.0,87050.0,0.70731881]
[1763660384516,0.00200581,87059.0,87050.0,0.70731881]
[1763660384725,0.01,87055.0,87050.0,0.70731881]
[1763660384863,0.00037728,87062.0,87045.0,0.70731881]
[1763660385059,0.00037728,87062.0,87052.0,0.70731881]
[1763660385262,0.04961641,87057.0,87052.0,0.70731881]
[1763660385466,0.00037728,87062.0,87040.0,0.05353735]
[1763660385681,0.01,87048.0,87040.0,0.7300444]
[1763660385898,0.04961641,87041.0,87040.0,0.7300444]
[1763660386109,0.04961641,87041.0,87040.0,0.02272559]
[1763660386538,0.04961641,87041.0,87031.0,0.70731881]
[1763660386748,0.00238309,87062.0,87031.0,0.70731881]
[1763660386749,0.04961641,87040.0,87031.0,0.70731881]
[1763660386958,0.04961641,87040.0,87030.0,0.70731881]
[1763660387168,0.01,87042.0,87030.0,0.70731881]
[1763660387393,0.00238309,87062.0,87032.0,0.70731881]
[1763660387599,0.04961641,87039.0,87025.0,0.03081176]
[1763660387798,0.04961641,87039.0,87013.0,0.06162352]
[1763660387799,0.01,87031.0,87013.0,0.03081176]
[1763660388074,0.05210249,87057.0,87010.0,0.70731881]
[1763660388255,0.11476708,87033.0,87020.0,0.70731881]
[1763660388454,0.04961641,87021.0,87020.0,0.70731881]
[1763660388657,0.01,87017.0,87011.0,0.70731881]
[1763660388827,0.00200581,87032.0,87012.0,0.0137912]
[1763660389028,0.04961641,87018.0,87012.0,0.01391676]
[1763660389230,0.04961641,87018.0,87012.0,0.00012556]
[1763660389538,0.11476708,87033.0,87012.0,0.01391676]
[1763660389736,0.323,87057.0,87023.0,0.05210249]
[1763660389961,0.01,87044.0,87032.0,0.0492]
[1763660390163,0.01,87044.0,87034.0,0.70731881]
[1763660390550,0.01,87049.0,87034.0,0.70731881]
[1763660390755,0.01,87052.0,87040.0,0.70731881]
[1763660390985,0.04961641,87047.0,87026.0,0.323]
[1763660391179,0.04961641,87047.0,87040.0,0.70731881]
[1763660391943,0.00200581,87060.0,87040.0,0.70731881]
[1763660392144,0.01,87052.0,87040.0,0.70731881]
[1763660392540,0.04961641,87058.0,87026.0,0.03081176]
[1763660392739,0.04961641,87058.0,87048.0,0.70731881]
[1763660393848,0.04961641,87058.0,87036.0,0.09632]
[1763660393849,0.04961641,87045.0,87027.0,0.03081176]
[1763660394051,0.00200581,87044.0,87030.0,0.70731881]
[1763660394230,0.00012556,87060.0,87031.0,0.03838885]
[1763660394431,0.04961641,87052.0,87040.0,0.70731881]
[1763660394655,0.00200581,87051.0,87040.0,0.70731881]
[1763660395003,0.00012556,87060.0,87030.0,0.09632]
[1763660395004,0.04961641,87050.0,87030.0,0.09632]
[1763660395146,0.00200581,87049.0,87031.0,0.02460215]
[1763660395351,0.00012556,87060.0,87039.0,0.70731881]
[1763660395576,0.00213137,87060.0,87040.0,0.70731881]
[1763660395765,0.04961641,87047.0,87040.0,0.70731881]
[1763660395979,0.00213137,87060.0,87030.0,0.70731881]
[1763660395980,0.04961641,87038.0,87030.0,0.70731881]
[1763660396180,0.04961641,87038.0,87020.0,0.06380793]
[1763660396181,0.01802868,87057.0,87028.0,0.70731881]
[1763660396423,0.04961641,87049.0,87040.0,0.70731881]
[1763660396564,0.00200581,87057.0,87040.0,0.70731881]
[1763660396764,0.04961641,87041.0,87040.0,0.70731881]
[1763660397004,0.01,87040.0,87030.0,0.70731881]
[1763660397218,0.08475,87056.0,87016.0,0.13740234]
[1763660397219,0.32500581,87055.0,87016.0,0.03081176]
[1763660397415,0.04961641,87018.0,87017.0,0.02463108]
[1763660397687,0.04961641,87018.0,87010.0,0.70731881]
[1763660397897,0.04961641,87015.0,87011.0,0.03842461]
[1763660398120,0.04961641,87019.0,87012.0,0.12095326]
[1763660398346,0.08475,87053.0,87013.0,0.0384243]
[1763660398347,0.04961641,87029.0,87013.0,0.0384243]
[1763660398551,0.04961641,87033.0,87019.0,0.70731881]
[1763660398729,0.04961641,87033.0,87020.0,0.02463326]
[1763660398954,0.04961641,87033.0,87021.0,0.02463326]
[1763660399131,0.04961641,87033.0,87022.0,0.02463326]
[1763660399341,0.04961641,87036.0,87023.0,0.03842271]
[1763660399541,0.04961641,87036.0,87024.0,0.02463326]
[1763660399758,0.04961641,87036.0,87025.0,0.02463326]
[1763660399921,0.04961641,87036.0,87026.0,0.02463326]
[1763660400125,0.04961641,87036.0,87027.0,0.02463326]
[1763660400329,0.0353,87041.0,87019.0,0.00012556]
[1763660400330,0.00200581,87040.0,87019.0,0.00012556]
[1763660400528,0.04961641,87023.0,87020.0,0.0246881]
[1763660400707,0.04961641,87023.0,87021.0,0.0246881]
[1763660400908,0.0353,87041.0,87019.0,0.00012556]
[1763660401113,0.0353,87041.0,87030.0,0.70731881]
[1763660401322,0.01,87054.0,87040.0,0.0492]
[1763660401549,0.00025172,87062.0,87047.0,0.03081176]
[1763660401752,0.00025172,87062.0,87048.0,0.02468982]
[1763660401995,0.00025172,87062.0,87036.0,0.03081176]
[1763660401996,0.0353,87041.0,87036.0,0.03081176]
[1763660402215,0.04961641,87030.0,87026.0,0.0492]
[1763660402416,0.03342,87049.0,87027.0,0.02472585]
[1763660402621,0.01,87038.0,87036.0,0.03090912]
[1763660402824,0.04354554,87049.0,87037.0,0.05563497]
[1763660403026,0.04961641,87039.0,87038.0,0.02472585]
[1763660403243,0.04961641,87039.0,87038.0,0.05563497]
[1763660403459,0.03354554,87049.0,87038.0,0.13440056]
[1763660403460,0.00012554,87049.0,87038.0,0.13440056]
[1763660403677,0.00012554,87049.0,87046.0,0.04121217]
[1763660403895,0.00025172,87062.0,87048.0,0.05210249]
[1763660404125,0.00025172,87062.0,87061.0,0.09774249]
[1763660404326,0.00025172,87062.0,87061.0,0.02472585]
[1763660404956,0.00025172,87062.0,87061.0,0.055633]
[1763660405165,0.00025172,87062.0,87061.0,0.02472585]
[1763660405393,0.04986813,87062.0,87061.0,0.02472585]
[1763660405616,0.00025172,87062.0,87051.0,0.03090608]
[1763660405830,0.05161172,87062.0,87052.0,0.02473293]
[1763660406061,0.05161172,87062.0,87051.0,0.00012554]
[1763660406062,0.00200581,87061.0,87051.0,0.00012554]
[1763660406280,0.01,87052.0,87051.0,0.00012554]
[1763660406697,0.06136,87052.0,87051.0,0.00012554]
[1763660406900,0.08235729,87052.0,87051.0,0.00012554]
[1763660407511,0.43589675,87052.0,87051.0,0.00012554]
[1763660407710,0.43389094,87052.0,87051.0,0.00012554]
[1763660407856,0.41586094,87052.0,87051.0,0.00012554]
[1763660409006,0.41679855,87052.0,87051.0,0.00012554]
[1763660409582,3.46890104,87052.0,87051.0,0.00012554]
[1763660410023,3.46889387,87052.0,87051.0,0.00012554]
[1763660410346,3.50851028,87052.0,87051.0,0.00012554]
[1763660410737,3.50851028,87052.0,86999.0,0.06181063]
[1763660410738,0.01148936,87037.0,87001.0,0.03090608]
[1763660410945,0.01148936,87037.0,87002.0,0.0247628]
[1763660410946,0.04955402,87003.0,87002.0,0.0247628]
[1763660411184,0.323,87025.0,87001.0,0.00012556]
[1763660411185,0.01,87002.0,87001.0,0.00012556]
[1763660411392,0.01149557,86990.0,86973.0,0.03090608]
[1763660411534,0.323,86987.0,86973.0,0.00041879]
[1763660411712,0.01,86974.0,86973.0,0.00041879]
[1763660412135,0.08232004,86974.0,86973.0,0.00041879]
[1763660412341,0.06136,86974.0,86973.0,0.00041879]
[1763660412689,0.45737617,86974.0,86973.0,0.00041879]
[1763660412839,3.45737617,86974.0,86973.0,0.00041879]
[1763660413041,3.45837645,86974.0,86973.0,0.00041879]
[1763660413648,3.68833022,86974.0,86973.0,0.00041879]
[1763660413852,3.69776794,86974.0,86973.0,0.00041879]
[1763660414251,3.69876794,86974.0,86973.0,0.00041879]
[1763660414552,3.65467111,86951.0,86940.0,0.0004]
[1763660414779,3.60514355,86941.0,86940.0,0.0004]
[1763660414979,3.68604925,86941.0,86940.0,0.00052538]
[1763660415116,3.68604925,86941.0,86924.0,0.00458074]
[1763660415117,0.37510249,86925.0,86924.0,0.00458074]
[1763660415315,0.37510249,86925.0,86920.0,0.0004]
[1763660415316,0.05210249,86922.0,86920.0,0.0004]
[1763660415516,0.04955402,86881.0,86880.0,0.0004]
[1763660415732,0.04955402,86881.0,86880.0,0.00081929]
[1763660416031,0.01,86881.0,86880.0,0.00081929]
[1763660417571,1.03804506,86910.0,86880.0,0.00081929]
[1763660417572,0.01,86890.0,86880.0,0.00181929]
[1763660417769,0.02627,86912.0,86880.0,1.13985435]
[1763660417996,0.04955402,86901.0,86880.0,1.13985435]
[1763660418289,0.01805583,86909.0,86890.0,1.03804506]
[1763660418493,0.01805583,86909.0,86881.0,0.323]
[1763660418494,0.04955402,86898.0,86881.0,0.323]
[1763660418722,0.04955402,86886.0,86881.0,0.323]
[1763660418926,0.02627,86912.0,86881.0,0.323]
[1763660419072,0.01805603,86897.0,86890.0,1.03804506]
[1763660419287,0.01805603,86897.0,86885.0,0.04564]
[1763660419848,0.07642,86936.0,86888.0,0.323]
[1763660420097,0.04955402,86919.0,86910.0,1.03804506]
[1763660420308,0.0180543,86923.0,86891.0,0.323]
[1763660420492,0.05136,86928.0,86891.0,0.323]
[1763660420795,0.04955402,86909.0,86900.0,1.03804506]
[1763660420979,0.04955402,86909.0,86885.0,0.04564]
[1763660421188,0.02627,86908.0,86890.0,1.03804506]
[1763660421389,0.02627,86908.0,86890.0,1.03846435]
[1763660421390,0.04955402,86896.0,86890.0,1.03846435]
[1763660421779,0.04955402,86896.0,86895.0,0.00091499]
[1763660422183,0.02627,86908.0,86895.0,0.00091499]
[1763660422392,0.04955402,86901.0,86890.0,1.03846435]
[1763660422559,0.04955402,86891.0,86890.0,0.00041929]
[1763660422782,0.10091402,86891.0,86890.0,0.00041929]
[1763660422983,0.10091402,86891.0,86890.0,0.0014921]
[1763660423618,0.05136,86891.0,86890.0,0.0014921]
[1763660423863,0.05136,86905.0,86890.0,0.0014921]
[1763660424069,0.05055402,86891.0,86890.0,0.00041929]
[1763660424307,0.001,86891.0,86890.0,0.00041929]
[1763660424679,0.01,86904.0,86890.0,0.00041929]
[1763660424902,0.01,86904.0,86880.0,1.03844506]
[1763660424903,0.23012216,86911.0,86880.0,0.0004]
[1763660425107,0.04955402,86882.0,86880.0,0.0004]
[1763660425480,0.00999999,86930.0,86880.0,0.0004]
[1763660425681,0.04955402,86883.0,86880.0,1.03844506]
[1763660425879,0.04955402,86883.0,86880.0,0.0004]
[1763660426300,0.04955402,86883.0,86880.0,0.00052571]
[1763660426476,0.05210249,86922.0,86880.0,0.00052571]
[1763660426677,0.04955402,86887.0,86880.0,1.03857077]
[1763660427038,0.04955402,86881.0,86880.0,0.00052571]
[1763660428183,3.0,86928.0,86880.0,0.10051571]
[1763660428403,0.03964492,86929.0,86910.0,1.03804506]
[1763660428626,0.03964492,86929.0,86890.0,1.03804506]
[1763660428627,0.04955402,86902.0,86890.0,1.03804506]
[1763660428842,0.04955402,86901.0,86890.0,1.03804506]
[1763660429050,0.01,86892.0,86880.0,0.0004]
[1763660429269,0.01805531,86917.0,86880.0,1.03844506]
[1763660429397,0.01,86892.0,86881.0,0.01381199]
[1763660429618,0.01,86892.0,86881.0,0.00012571]
[1763660429805,0.04955402,86882.0,86881.0,0.00012571]
[1763660430007,0.04955402,86890.0,86881.0,0.00012571]
[1763660430209,0.01,86894.0,86881.0,0.00012571]
[1763660430410,0.05210249,86916.0,86889.0,0.00110438]
[1763660430617,0.01805531,86917.0,86881.0,0.00012571]
[1763660430618,0.01805531,86917.0,86887.0,0.04403]
[1763660430816,0.04955402,86898.0,86890.0,1.03804506]
[1763660431019,0.01805531,86917.0,86890.0,1.03804506]
[1763660431387,0.04955402,86897.0,86881.0,0.00012571]
[1763660431562,0.04955402,86886.0,86881.0,0.00012571]
[1763660431788,0.01805531,86917.0,86881.0,0.00012571]
[1763660431789,0.04955402,86885.0,86881.0,0.00012571]
[1763660431956,0.01,86883.0,86881.0,0.00012571]
[1763660432167,0.04955402,86882.0,86881.0,0.00012571]
[1763660432381,0.323,86917.0,86881.0,0.00012571]
[1763660432382,0.27975048,86883.0,86881.0,0.00012571]
[1763660432569,0.27975048,86883.0,86880.0,0.0004]
[1763660432570,0.01,86881.0,86880.0,0.0004]
[1763660432736,0.01,86881.0,86880.0,0.00052584]
[1763660433674,0.01,86899.0,86880.0,0.09301584]
[1763660433876,0.02158571,86929.0,86880.0,0.09301584]
[1763660433877,0.02158571,86929.0,86889.0,1.03804506]
[1763660434087,0.02158571,86929.0,86881.0,0.02311357]
[1763660434088,0.02158571,86929.0,86910.0,1.03804506]
[1763660434298,0.01751093,86968.0,86919.0,1.03804506]
[1763660434299,0.04955402,86923.0,86919.0,1.03804506]
[1763660434498,0.11476708,86946.0,86898.0,0.04632]
[1763660434499,0.01,86936.0,86913.0,1.03804506]
[1763660434646,0.04955402,86938.0,86926.0,1.03804506]
[1763660434862,0.11476708,86946.0,86926.0,1.03804506]
[1763660435071,0.11476708,86946.0,86922.0,0.04632]
[1763660435072,0.04955402,86946.0,86936.0,1.03804506]
[1763660435269,0.00041825,86946.0,86937.0,0.323]
[1763660435473,0.01,86973.0,86938.0,0.05210249]
[1763660435687,0.04967948,86973.0,86940.0,0.323]
[1763660435900,0.00012546,86973.0,86960.0,1.03804506]
[1763660436064,0.04955402,86961.0,86927.0,0.323]
[1763660436314,0.00012546,86973.0,86950.0,1.03804506]
[1763660436517,0.01,86943.0,86940.0,1.03804506]
[1763660436721,0.323,86967.0,86933.0,1.03804506]
[1763660437107,0.323,86967.0,86913.0,0.04632]
[1763660437108,0.05210249,86961.0,86913.0,0.04632]
[1763660437304,0.323,86952.0,86913.0,0.04632]
[1763660437443,0.04955402,86938.0,86914.0,0.09249]
[1763660437645,0.04967941,86938.0,86914.0,0.09249]
[1763660438039,0.04955402,86930.0,86928.0,1.03804506]
[1763660438238,0.04955402,86930.0,86920.0,1.03804506]
[1763660439760,0.04955402,86921.0,86904.0,0.02272559]
[1763660439994,0.04955402,86921.0,86892.0,0.06181063]
[1763660439995,0.04955402,86924.0,86911.0,1.03804506]
[1763660440213,0.323,86936.0,86914.0,1.03804506]
[1763660440420,0.323,86936.0,86896.0,0.03045738]
[1763660440421,0.02085934,86935.0,86910.0,1.03804506]
[1763660440625,0.01,86921.0,86920.0,1.03804506]
[1763660440834,0.04955402,86913.0,86910.0,1.03804506]
[1763660441041,0.323,86932.0,86903.0,1.03804506]
[1763660441212,0.01,86925.0,86922.0,1.03804506]
[1763660441410,0.04955402,86923.0,86922.0,1.03804506]
[1763660441662,0.00012539,86938.0,86916.0,0.00025235]
[1763660441873,0.04955402,86917.0,86916.0,0.00025235]
[1763660442934,0.07045128,86917.0,86916.0,0.00025235]
[1763660443150,0.6235537,86917.0,86916.0,0.00025235]
[1763660443363,0.40390086,86917.0,86916.0,0.00025235]
[1763660443581,0.07044912,86917.0,86916.0,0.00025235]
[1763660443792,0.04955402,86917.0,86916.0,0.00025235]
[1763660445958,0.09897488,86917.0,86916.0,0.00025235]
[1763660446143,0.08852136,86917.0,86916.0,0.00025235]
[1763660446359,0.01,86917.0,86916.0,0.00025235]
[1763660447025,0.00094052,86926.0,86916.0,0.00025235]
[1763660447236,0.01,86917.0,86916.0,0.00025235]
[1763660448528,0.03090081,86917.0,86916.0,0.00025235]
[1763660449288,0.04895781,86917.0,86916.0,0.00025235]
[1763660450046,0.04895781,86917.0,86916.0,0.00125235]
[1763660450263,0.06701522,86917.0,86916.0,0.00025235]
[1763660450812,0.04895822,86917.0,86916.0,0.00025235]
[1763660451736,0.03895822,86917.0,86916.0,0.00025235]
[1763660451946,0.00094052,86926.0,86916.0,0.00025235]
[1763660452145,0.00094052,86926.0,86920.0,0.03045738]
[1763660452375,0.00094052,86926.0,86917.0,0.02473735]
[1763660452376,0.00094052,86926.0,86922.0,0.03045738]
[1763660452529,0.00094052,86926.0,86923.0,0.02473735]
[1763660452884,0.1473,86925.0,86924.0,0.03437753]
[1763660453030,0.1473,86925.0,86924.0,0.11722735]
[1763660453221,0.1473,86925.0,86924.0,0.17904526]
[1763660453422,0.1473,86925.0,86924.0,0.08655526]
[1763660453657,0.1473,86925.0,86924.0,0.16354735]
[1763660454038,0.14824052,86926.0,86925.0,0.323]
[1763660454262,0.14824052,86926.0,86925.0,0.15133772]
[1763660455171,0.14824052,86926.0,86925.0,0.11722735]
[1763660455737,0.05433052,86926.0,86925.0,0.20344021]
[1763660455931,0.03078,86943.0,86926.0,0.37510249]
[1763660456142,0.04998059,86939.0,86934.0,0.03089571]
[1763660456345,0.01804836,86948.0,86935.0,0.02473735]
[1763660456566,0.01804836,86948.0,86936.0,0.02473735]
[1763660456696,0.01804836,86948.0,86937.0,0.02473735]
[1763660458136,0.17633708,86969.0,86937.0,0.11722735]
[1763660458137,0.01,86950.0,86937.0,0.11722735]
[1763660458348,0.22992098,86987.0,86937.0,0.11722735]
[1763660458349,0.11476708,86989.0,86940.0,1.03804506]
[1763660458739,0.02,86961.0,86959.0,1.03804506]
[1763660458932,0.02,86961.0,86953.0,0.03089026]
[1763660458933,0.02,86961.0,86960.0,0.02473735]
[1763660459141,0.01,86963.0,86960.0,0.02473735]
[1763660459344,0.01,86967.0,86961.0,0.02473735]
[1763660459475,0.01,86967.0,86962.0,0.02473735]
[1763660459665,0.04998059,86964.0,86963.0,0.02473735]
[1763660459863,0.04998059,86966.0,86963.0,0.02473735]
[1763660460071,0.11476708,87000.0,86965.0,0.323]
[1763660460273,0.04998059,86981.0,86980.0,1.03804506]
[1763660460487,0.04998059,86981.0,86971.0,1.03804506]
[1763660460700,0.01,86986.0,86972.0,0.0246921]
[1763660460939,0.01,86986.0,86976.0,1.03804506]
[1763660461147,0.01804591,87006.0,86985.0,0.0462556]
[1763660461345,0.01804591,87006.0,87005.0,0.04632]
[1763660461346,0.01817169,87006.0,87005.0,0.04632]
[1763660461526,0.00012578,87006.0,87005.0,0.42812247]
[1763660461722,0.00012578,87006.0,87005.0,0.57798193]
[1763660462086,0.00012578,87006.0,87005.0,0.4865021]
[1763660462292,0.00012578,87006.0,87005.0,0.57271496]
[1763660463814,0.00012578,87006.0,87005.0,0.57471496]
[1763660464001,0.00012578,87006.0,87005.0,0.57879496]
[1763660464259,0.00012578,87006.0,87005.0,0.64178179]
[1763660464471,0.00012578,87006.0,87005.0,0.57879496]
[1763660464889,0.00012578,87006.0,87005.0,0.52218247]
[1763660465130,0.0002,87040.0,87030.0,1.03804506]
[1763660465342,0.00061887,87040.0,87030.0,1.03804506]
[1763660465545,0.00061887,87040.0,87031.0,0.08798]
[1763660465719,0.00061887,87040.0,87019.0,0.323]
[1763660465918,0.01803,87038.0,87018.0,0.08798]
[1763660466251,0.01,87034.0,87030.0,1.03804506]
[1763660466466,0.01803,87038.0,87016.0,0.03411037]
[1763660466673,0.01803,87038.0,87000.0,1.03804506]
[1763660466674,0.04998059,87011.0,87000.0,1.03804506]
[1763660466881,0.01,86995.0,86980.0,1.03804506]
[1763660467091,0.04998059,86981.0,86980.0,1.03804506]
[1763660467310,0.04998059,86981.0,86966.0,0.03411037]
[1763660467311,0.0207,86986.0,86971.0,1.03804506]
[1763660467530,0.05433052,86981.0,86960.0,1.03804506]
[1763660467761,0.04228,86985.0,86960.0,1.03804506]
[1763660467762,0.2299426,86979.0,86960.0,1.03804506]
[1763660467977,0.34021052,86985.0,86960.0,1.03804506]
[1763660467978,0.34021052,86985.0,86960.0,1.03817084]
[1763660468185,0.04998059,86962.0,86960.0,1.03817084]
[1763660468394,0.05433052,86961.0,86960.0,0.00012578]
[1763660469405,0.05433052,86961.0,86960.0,0.08810578]
[1763660469809,0.05433052,86961.0,86960.0,0.1826989]
[1763660470011,0.05433052,86984.0,86970.0,0.00999999]
[1763660470213,0.0002,87040.0,86994.0,0.05210249]
[1763660470412,0.01,87022.0,87020.0,0.70830523]
[1763660470614,0.01,87022.0,87012.0,0.70830523]
[1763660470813,0.04998059,87026.0,87012.0,0.70830523]
[1763660471012,0.04998059,87026.0,87016.0,0.70830523]
[1763660471241,0.0002,87040.0,87017.0,0.323]
[1763660471452,0.0002,87040.0,87028.0,0.70830523]